fUST/lending_fUST_20260505
["ID","MTS","AMOUNT","RATE_DAILY","PERIOD"]
[421621630,1777979446000,-2015.96,0.00012602,2]
[421621655,1777979446000,-500.0,0.00012602,2]
[421621657,1777979446000,-12562.572753,0.00012618,2]
[421621661,1777979446000,-151.0,0.000128,2]
[421621665,1777979446000,-2612.3582,0.00012876,2]
[421621662,1777979446000,-151.0,0.000128,2]
[421621667,1777979446000,-584.5499,0.00012876,2]
[421621664,1777979446000,-630.61,0.00012876,2]
[421621668,1777979446000,-874.24,0.00012876,2]
[421621663,1777979446000,-2254.57559576,0.000128,2]
[421621656,1777979446000,-308.47700402,0.00012602,2]
[421621669,1777979446000,-560.76,0.00012876,2]
[421621672,1777979446000,-500.0,0.00012876,2]
[421621670,1777979446000,-1181.98,0.00012876,2]
[421621674,1777979446000,-500.0,0.00012876,2]
[421621678,1777979446000,-822.64,0.00012876,2]
[421621673,1777979446000,-500.0,0.00012876,2]
[421621676,1777979446000,-500.0,0.00012876,2]
[421621675,1777979446000,-593.01,0.00012876,2]
[421621677,1777979446000,-500.0,0.00012876,2]
[421621631,1777979446000,-500.0,0.00012602,2]
[421621671,1777979446000,-500.0,0.00012876,2]
[421621654,1777979446000,-500.0,0.00012602,2]
[421621666,1777979446000,-2064.0348,0.00012876,2]
[421621660,1777979446000,-3334.86001495,0.00012727,2]
[421621634,1777979446000,-10556.79,0.00012602,2]
[421621653,1777979446000,-500.0,0.00012602,2]
[421621641,1777979446000,-664.88,0.00012602,2]
[421621640,1777979446000,-500.0,0.00012602,2]
[421621633,1777979446000,-918.39,0.00012602,2]
[421621636,1777979446000,-508.68,0.00012602,2]
[421621639,1777979446000,-500.0,0.00012602,2]
[421621638,1777979446000,-594.26,0.00012602,2]
[421621642,1777979446000,-2923.15,0.00012602,2]
[421621643,1777979446000,-505.75,0.00012602,2]
[421621644,1777979446000,-3482.75,0.00012602,2]
[421621635,1777979446000,-500.0,0.00012602,2]
[421621645,1777979446000,-1284.81,0.00012602,2]
[421621659,1777979446000,-151.0,0.000127,2]
[421621658,1777979446000,-151.0,0.000127,2]
[421621651,1777979446000,-5935.23,0.00012602,2]
[421621649,1777979446000,-500.0,0.00012602,2]
[421621652,1777979446000,-1762.75,0.00012602,2]
[421621648,1777979446000,-653.15,0.00012602,2]
[421621646,1777979446000,-1952.42,0.00012602,2]
[421621650,1777979446000,-4272.19,0.00012602,2]
[421621647,1777979446000,-627.32,0.00012602,2]
[421621716,1777979447000,-500.0,0.00012876,2]
[421621707,1777979447000,-835.94,0.00012876,2]
[421621704,1777979447000,-500.0,0.00012876,2]
[421621706,1777979447000,-500.0,0.00012876,2]
[421621708,1777979447000,-500.0,0.00012876,2]
[421621711,1777979447000,-2353.98,0.00012876,2]
[421621709,1777979447000,-500.0,0.00012876,2]
[421621710,1777979447000,-500.0,0.00012876,2]
[421621712,1777979447000,-627.34,0.00012876,2]
[421621714,1777979447000,-783.36,0.00012876,2]
[421621715,1777979447000,-500.0,0.00012876,2]
[421621728,1777979447000,-806.84,0.00012876,2]
[421621719,1777979447000,-500.0,0.00012876,2]
[421621713,1777979447000,-500.0,0.00012876,2]
[421621721,1777979447000,-1267.63,0.00012876,2]
[421621724,1777979447000,-497.15285951,0.00012876,2]
[421621723,1777979447000,-500.0,0.00012876,2]
[421621725,1777979447000,-500.0,0.00012876,2]
[421621727,1777979447000,-688.49,0.00012876,2]
[421621726,1777979447000,-500.45751094,0.00012876,2]
[421621734,1777979447000,-3423.34,0.00012876,2]
[421621705,1777979447000,-684.7,0.00012876,2]
[421621717,1777979447000,-773.78,0.00012876,2]
[421621703,1777979447000,-500.0,0.00012876,2]
[421621682,1777979447000,-500.0,0.00012876,2]
[421621702,1777979447000,-1061.55,0.00012876,2]
[421621679,1777979447000,-500.0,0.00012876,2]
[421621680,1777979447000,-500.0,0.00012876,2]
[421621685,1777979447000,-500.0,0.00012876,2]
[421621683,1777979447000,-500.0,0.00012876,2]
[421621684,1777979447000,-500.0,0.00012876,2]
[421621688,1777979447000,-500.0,0.00012876,2]
[421621686,1777979447000,-1426.85,0.00012876,2]
[421621687,1777979447000,-514.19,0.00012876,2]
[421621689,1777979447000,-500.0,0.00012876,2]
[421621690,1777979447000,-500.0,0.00012876,2]
[421621701,1777979447000,-1274.29,0.00012876,2]
[421621681,1777979447000,-572.47,0.00012876,2]
[421621691,1777979447000,-500.0,0.00012876,2]
[421621693,1777979447000,-559.13,0.00012876,2]
[421621694,1777979447000,-599.94,0.00012876,2]
[421621695,1777979447000,-524.66,0.00012876,2]
[421621698,1777979447000,-500.0,0.00012876,2]
[421621699,1777979447000,-500.0,0.00012876,2]
[421621697,1777979447000,-587.5,0.00012876,2]
[421621696,1777979447000,-500.0,0.00012876,2]
[421621700,1777979447000,-500.0,0.00012876,2]
[421621729,1777979447000,-500.0,0.00012876,2]
[421621692,1777979447000,-314.88125962,0.00012876,2]
[421621730,1777979447000,-682.2,0.00012876,2]
[421621761,1777979447000,-500.0,0.00012876,2]
[421621731,1777979447000,-1869.35,0.00012876,2]
[421621762,1777979447000,-500.0,0.00012876,2]
[421621763,1777979447000,-749.28,0.00012876,2]
[421621759,1777979447000,-1752.96,0.00012876,2]
[421621770,1777979447000,-1547.97,0.00012876,2]
[421621764,1777979447000,-580.01,0.00012876,2]
[421621766,1777979447000,-500.0,0.00012876,2]
[421621771,1777979447000,-500.0,0.00012876,2]
[421621765,1777979447000,-677.13,0.00012876,2]
[421621767,1777979447000,-831.95,0.00012876,2]
[421621768,1777979447000,-500.0,0.00012876,2]
[421621760,1777979447000,-1516.19,0.00012876,2]
[421621769,1777979447000,-747.01,0.00012876,2]
[421621772,1777979447000,-1063.93,0.00012876,2]
[421621777,1777979447000,-3358.05,0.00012876,2]
[421621779,1777979447000,-536.47,0.00012876,2]
[421621780,1777979447000,-500.0,0.00012876,2]
[421621778,1777979447000,-500.0,0.00012876,2]
[421621781,1777979447000,-500.0,0.00012876,2]
[421621775,1777979447000,-633.05,0.00012876,2]
[421621774,1777979447000,-1537.04,0.00012876,2]
[421621782,1777979447000,-228.14564734,0.00012876,2]
[421621776,1777979447000,-642.98,0.00012876,2]
[421621773,1777979447000,-2019.89,0.00012876,2]
[421621732,1777979447000,-500.0,0.00012876,2]
[421621756,1777979447000,-500.0,0.00012876,2]
[421621753,1777979447000,-262.37499848,0.00012876,2]
[421621733,1777979447000,-500.0,0.00012876,2]
[421621735,1777979447000,-500.0,0.00012876,2]
[421621738,1777979447000,-500.0,0.00012876,2]
[421621741,1777979447000,-500.0,0.00012876,2]
[421621744,1777979447000,-979.94,0.00012876,2]
[421621736,1777979447000,-500.0,0.00012876,2]
[421621737,1777979447000,-500.0,0.00012876,2]
[421621742,1777979447000,-500.0,0.00012876,2]
[421621740,1777979447000,-500.0,0.00012876,2]
[421621739,1777979447000,-500.0,0.00012876,2]
[421621755,1777979447000,-1024.82,0.00012876,2]
[421621743,1777979447000,-880.14,0.00012876,2]
[421621746,1777979447000,-3651.8,0.00012876,2]
[421621757,1777979447000,-500.0,0.00012876,2]
[421621750,1777979447000,-500.0,0.00012876,2]
[421621747,1777979447000,-500.0,0.00012876,2]
[421621758,1777979447000,-594.96,0.00012876,2]
[421621748,1777979447000,-342.698628,0.00012876,2]
[421621749,1777979447000,-500.0,0.00012876,2]
[421621752,1777979447000,-500.0,0.00012876,2]
[421621754,1777979447000,-500.0,0.00012876,2]
[421621751,1777979447000,-500.0,0.00012876,2]
[421621745,1777979447000,-1047.38,0.00012876,2]
[421621783,1777979448000,-1000.0,0.00012328,2]
[421621785,1777979449000,-2399.16763074,0.00012328,2]
[421621787,1777979449000,-1607.14341807,0.00012602,2]
[421621786,1777979449000,-5035.38236926,0.00012328,2]
[421621861,1777980632000,-399.86526697,8.986e-05,2]
[421621937,1777980638000,-68.8116609,8.986e-05,2]
[421621956,1777980638000,-600.0,0.00010339,2]
[421621953,1777980638000,-300.0,0.00010339,2]
[421621954,1777980638000,-300.0,0.00010339,2]
[421621952,1777980638000,-300.0,0.00010339,2]
[421621941,1777980638000,-300.0,0.00010339,2]
[421621939,1777980638000,-181.71298206,0.00010161,2]
[421621946,1777980638000,-300.0,0.00010339,2]
[421621950,1777980638000,-300.0,0.00010339,2]
[421621947,1777980638000,-300.0,0.00010339,2]
[421621955,1777980638000,-300.0,0.00010339,2]
[421621945,1777980638000,-300.0,0.00010339,2]
[421621944,1777980638000,-300.0,0.00010339,2]
[421621942,1777980638000,-300.0,0.00010339,2]
[421621948,1777980638000,-300.0,0.00010339,2]
[421621940,1777980638000,-300.0,0.00010338,2]
[421621943,1777980638000,-300.0,0.00010339,2]
[421621951,1777980638000,-300.0,0.00010339,2]
[421621938,1777980638000,-5000.0,9.077e-05,2]
[421621949,1777980638000,-300.0,0.00010339,2]
[421621963,1777980638000,-200.0,0.00011889,2]
[421621964,1777980638000,-200.0,0.00011889,2]
[421621979,1777980638000,-3620.64687625,0.00012127,2]
[421621978,1777980638000,-160.0,0.00012126,2]
[421621973,1777980638000,-800.0,0.00012074,2]
[421621971,1777980638000,-800.0,0.0001206,2]
[421621968,1777980638000,-800.0,0.00012005,2]
[421621972,1777980638000,-800.0,0.00012069,2]
[421621970,1777980638000,-200.0,0.00012046,2]
[421621974,1777980638000,-800.0,0.00012077,2]
[421621962,1777980638000,-200.0,0.00011889,2]
[421621975,1777980638000,-160.42541613,0.00012083,3]
[421621967,1777980638000,-800.0,0.0001198,2]
[421621965,1777980638000,-200.0,0.00011889,2]
[421621976,1777980638000,-168.571,0.00012094,2]
[421621977,1777980638000,-800.0,0.00012117,2]
[421621966,1777980638000,-160.0,0.00011964,2]
[421621957,1777980638000,-429.01293042,0.00010618,2]
[421621960,1777980638000,-200.0,0.00011889,2]
[421621958,1777980638000,-420.0,0.00011368,2]
[421621961,1777980638000,-200.0,0.00011889,2]
[421621959,1777980638000,-720.0,0.00011373,2]
[421621969,1777980638000,-800.0,0.00012033,2]
[421621990,1777980640000,-401.02239385,9.031e-05,2]
[421621991,1777980640000,-60.78169383,0.00011031,2]
[421621995,1777980643000,-275.79946348,0.00011031,2]
[421621996,1777980643000,-136.62526743,0.00011031,2]
[421621997,1777980643000,-1282.34923257,0.00012127,2]
[421621998,1777980643000,-4603.4820427,0.00012127,2]
[421622022,1777980646000,-16621.91150344,0.00012127,2]
[421622021,1777980646000,-28104.20450592,0.00012127,2]
[421622020,1777980646000,-5349.41324364,0.00012127,2]
[421622023,1777980658000,80205.88739948,7.6e-05,2]
[421622024,1777980674000,-1685.09803634,9.9e-05,2]
[421622025,1777980676000,25194.31520563,0.0001,30]
[421622027,1777981221000,166.033991,6.231e-05,2]
[421622026,1777981221000,166.033991,4.154e-05,2]
[421622028,1777981413000,5000.0,8.01e-05,2]
[421622029,1777981457000,5000.0,8.01e-05,2]
[421622030,1777981465000,1685.09803634,8.01e-05,2]
[421622104,1777981831000,-389.48602822,8.287e-05,2]
[421622106,1777981831000,-166.033991,8.308e-05,2]
[421622108,1777981831000,-338.38682722,8.566e-05,2]
[421622115,1777981831000,-300.0,9.424e-05,2]
[421622119,1777981831000,-4191.40780372,9.425e-05,2]
[421622117,1777981831000,-587.0,9.424e-05,2]
[421622113,1777981831000,-712.78338618,8.566e-05,2]
[421622306,1777981840000,-300.0,9.612e-05,2]
[421622310,1777981840000,-300.0,9.612e-05,2]
[421622312,1777981840000,-600.0,9.803e-05,2]
[421622307,1777981840000,-300.0,9.612e-05,2]
[421622311,1777981840000,-1587.7738399,9.612e-05,2]
[421622316,1777981840000,-676.57961122,0.0001,2]
[421622308,1777981840000,-300.0,9.612e-05,2]
[421622309,1777981840000,-300.0,9.612e-05,2]
[421622314,1777981840000,-13798.05614394,0.0001,2]
[421622295,1777981840000,-28484.8091526,9.425e-05,2]
[421622302,1777981840000,-300.0,9.612e-05,2]
[421622304,1777981840000,-300.0,9.612e-05,2]
[421622300,1777981840000,-300.0,9.612e-05,2]
[421622299,1777981840000,-300.0,9.612e-05,2]
[421622301,1777981840000,-300.0,9.612e-05,2]
[421622298,1777981840000,-300.0,9.612e-05,2]
[421622297,1777981840000,-300.0,9.612e-05,2]
[421622296,1777981840000,-300.0,9.612e-05,2]
[421622315,1777981840000,-5990.07676037,0.0001,2]
[421622305,1777981840000,-300.0,9.612e-05,2]
[421622318,1777981840000,-367.0,0.00010366,2]
[421622303,1777981840000,-300.0,9.612e-05,2]
[421622317,1777981840000,-459.5935133,0.00010287,2]
[421622342,1777981840000,-231.3886809,0.00010958,2]
[421622340,1777981840000,-500.0,0.00010958,2]
[421622335,1777981840000,-500.0,0.00010958,2]
[421622334,1777981840000,-500.0,0.00010958,2]
[421622332,1777981840000,-500.0,0.00010958,2]
[421622341,1777981840000,-500.0,0.00010958,2]
[421622328,1777981840000,-500.0,0.00010958,2]
[421622337,1777981840000,-500.0,0.00010958,2]
[421622336,1777981840000,-500.0,0.00010958,2]
[421622330,1777981840000,-500.0,0.00010958,2]
[421622338,1777981840000,-500.0,0.00010958,2]
[421622331,1777981840000,-500.0,0.00010958,2]
[421622333,1777981840000,-500.0,0.00010958,2]
[421622319,1777981840000,-720.0,0.00010784,2]
[421622320,1777981840000,-313.51592305,0.00010958,2]
[421622324,1777981840000,-500.0,0.00010958,2]
[421622321,1777981840000,-500.0,0.00010958,2]
[421622326,1777981840000,-228.00072318,0.00010958,2]
[421622327,1777981840000,-500.0,0.00010958,2]
[421622339,1777981840000,-500.0,0.00010958,2]
[421622329,1777981840000,-500.0,0.00010958,2]
[421622322,1777981840000,-500.0,0.00010958,2]
[421622344,1777981841000,-500.0,0.00010958,2]
[421622355,1777981841000,-500.0,0.00010958,2]
[421622354,1777981841000,-500.0,0.00010958,2]
[421622356,1777981841000,-500.0,0.00010958,2]
[421622343,1777981841000,-191.98839749,0.00010958,2]
[421622350,1777981841000,-500.0,0.00010958,2]
[421622346,1777981841000,-500.0,0.00010958,2]
[421622347,1777981841000,-500.0,0.00010958,2]
[421622345,1777981841000,-500.0,0.00010958,2]
[421622349,1777981841000,-500.0,0.00010958,2]
[421622351,1777981841000,-500.0,0.00010958,2]
[421622352,1777981841000,-500.0,0.00010958,2]
[421622353,1777981841000,-500.0,0.00010958,2]
[421622358,1777981841000,-500.0,0.00010958,2]
[421622359,1777981841000,-500.0,0.00010958,2]
[421622357,1777981841000,-500.0,0.00010958,2]
[421622360,1777981841000,-1290.39271044,0.00010959,2]
[421622348,1777981841000,-500.0,0.00010958,2]
[421622432,1777981843000,-200.0,0.00011886,2]
[421622434,1777981843000,-160.0,0.00011959,2]
[421622431,1777981843000,-200.0,0.00011886,2]
[421622435,1777981843000,-502.0637207,0.00012,2]
[421622436,1777981843000,-229.73,0.00012,2]
[421622426,1777981843000,-200.0,0.00011886,2]
[421622437,1777981843000,-161.56332863,0.00012141,2]
[421622418,1777981843000,-13709.60728956,0.00010959,2]
[421622429,1777981843000,-200.0,0.00011886,2]
[421622430,1777981843000,-200.0,0.00011886,2]
[421622427,1777981843000,-200.0,0.00011886,2]
[421622422,1777981843000,-3021.5200412,0.00011702,2]
[421622416,1777981843000,-4521.44122703,0.00010848,2]
[421622424,1777981843000,-864.0,0.00011862,2]
[421622388,1777981843000,-478.55877297,0.00010848,2]
[421622433,1777981843000,-160.0,0.00011959,2]
[421622420,1777981843000,-5975.7386295,0.00011702,2]
[421622438,1777981843000,-160.0,0.00012141,2]
[421622450,1777981843000,-529.70099838,0.00012287,2]
[421622439,1777981843000,-646.0,0.00012197,2]
[421622449,1777981843000,-800.0,0.00012232,2]
[421622457,1777981843000,-500.0,0.00012327,2]
[421622455,1777981843000,-500.0,0.00012327,2]
[421622454,1777981843000,-500.0,0.00012327,2]
[421622458,1777981843000,-500.0,0.00012327,2]
[421622453,1777981843000,-616.49630493,0.00012327,2]
[421622452,1777981843000,-500.0,0.00012326,2]
[421622451,1777981843000,-800.0,0.00012289,2]
[421622456,1777981843000,-247.16492368,0.00012327,2]
[421622445,1777981843000,-151.0,0.000122,2]
[421622443,1777981843000,-151.0,0.000122,2]
[421622441,1777981843000,-442.0,0.00012197,2]
[421622447,1777981843000,-1358.81821291,0.00012212,2]
[421622444,1777981843000,-151.0,0.000122,2]
[421622446,1777981843000,-151.0,0.000122,2]
[421622442,1777981843000,-151.0,0.000122,2]
[421622440,1777981843000,-662.451,0.00012197,2]
[421622448,1777981843000,-177.24,0.00012221,2]
[421622464,1777981844000,-213.01077146,0.00012327,2]
[421622460,1777981844000,-500.0,0.00012327,2]
[421622461,1777981844000,-500.0,0.00012327,2]
[421622462,1777981844000,-500.0,0.00012327,2]
[421622465,1777981844000,-500.0,0.00012327,2]
[421622459,1777981844000,-500.0,0.00012327,2]
[421622466,1777981844000,-500.0,0.00012327,2]
[421622467,1777981844000,-500.0,0.00012327,2]
[421622468,1777981844000,-500.0,0.00012327,2]
[421622470,1777981844000,-3695.55758029,0.00012328,2]
[421622469,1777981844000,-300.0,0.00012327,2]
[421622463,1777981844000,-500.0,0.00012327,2]
[421622489,1777981846000,-500.0,0.00012328,2]
[421622492,1777981846000,-500.0,0.00012328,2]
[421622493,1777981846000,-500.0,0.00012328,2]
[421622497,1777981846000,-500.0,0.00012328,2]
[421622498,1777981846000,-1518.19,0.00012328,2]
[421622507,1777981846000,-1391.71,0.00012328,2]
[421622502,1777981846000,-500.0,0.00012328,2]
[421622506,1777981846000,-638.2,0.00012328,2]
[421622499,1777981846000,-500.0,0.00012328,2]
[421622503,1777981846000,-539.66,0.00012328,2]
[421622505,1777981846000,-532.33902858,0.00012328,2]
[421622500,1777981846000,-500.0,0.00012328,2]
[421622491,1777981846000,-568.84,0.00012328,2]
[421622487,1777981846000,-500.0,0.00012328,2]
[421622485,1777981846000,-551.92,0.00012328,2]
[421622488,1777981846000,-500.0,0.00012328,2]
[421622495,1777981846000,-500.0,0.00012328,2]
[421622496,1777981846000,-516.85,0.00012328,2]
[421622494,1777981846000,-500.0,0.00012328,2]
[421622486,1777981846000,-500.0,0.00012328,2]
[421622484,1777981846000,-500.0,0.00012328,2]
[421622483,1777981846000,-1216.11,0.00012328,2]
[421622482,1777981846000,-500.0,0.00012328,2]
[421622481,1777981846000,-208.45875878,0.00012328,2]
[421622479,1777981846000,-500.0,0.00012328,2]
[421622480,1777981846000,-291.54124122,0.00012328,2]
[421622501,1777981846000,-500.0,0.00012328,2]
[421622490,1777981846000,-500.0,0.00012328,2]
[421622504,1777981846000,-500.0,0.00012328,2]
[421622478,1777981846000,-907.75401971,0.00012328,2]
[421622509,1777981846000,-500.0,0.00012328,2]
[421622537,1777981846000,-1034.24,0.00012328,2]
[421622535,1777981846000,-500.0,0.00012328,2]
[421622536,1777981846000,-500.0,0.00012328,2]
[421622533,1777981846000,-500.0,0.00012328,2]
[421622534,1777981846000,-500.0,0.00012328,2]
[421622530,1777981846000,-500.0,0.00012328,2]
[421622528,1777981846000,-500.0,0.00012328,2]
[421622529,1777981846000,-500.0,0.00012328,2]
[421622523,1777981846000,-1856.26,0.00012328,2]
[421622527,1777981846000,-500.0,0.00012328,2]
[421622525,1777981846000,-500.0,0.00012328,2]
[421622522,1777981846000,-515.11,0.00012328,2]
[421622531,1777981846000,-598.72,0.00012328,2]
[421622532,1777981846000,-764.96,0.00012328,2]
[421622508,1777981846000,-500.0,0.00012328,2]
[421622526,1777981846000,-500.0,0.00012328,2]
[421622520,1777981846000,-682.39,0.00012328,2]
[421622511,1777981846000,-500.0,0.00012328,2]
[421622513,1777981846000,-500.0,0.00012328,2]
[421622510,1777981846000,-841.64,0.00012328,2]
[421622519,1777981846000,-500.0,0.00012328,2]
[421622516,1777981846000,-500.0,0.00012328,2]
[421622512,1777981846000,-774.23,0.00012328,2]
[421622517,1777981846000,-500.0,0.00012328,2]
[421622515,1777981846000,-125.65830814,0.00012328,2]
[421622514,1777981846000,-374.34169186,0.00012328,2]
[421622521,1777981846000,-500.0,0.00012328,2]
[421622524,1777981846000,-500.0,0.00012328,2]
[421622518,1777981846000,-500.0,0.00012328,2]
[421622555,1777981847000,-500.0,0.00012328,2]
[421622546,1777981847000,-500.0,0.00012328,2]
[421622554,1777981847000,-705.99,0.00012328,2]
[421622553,1777981847000,-500.0,0.00012328,2]
[421622539,1777981847000,-500.0,0.00012328,2]
[421622544,1777981847000,-677.05,0.00012328,2]
[421622542,1777981847000,-2059.73,0.00012328,2]
[421622541,1777981847000,-548.92,0.00012328,2]
[421622538,1777981847000,-500.0,0.00012328,2]
[421622543,1777981847000,-500.0,0.00012328,2]
[421622545,1777981847000,-602.43,0.00012328,2]
[421622540,1777981847000,-500.0,0.00012328,2]
[421622547,1777981847000,-518.88,0.00012328,2]
[421622557,1777981847000,-500.0,0.00012328,2]
[421622551,1777981847000,-783.8,0.00012328,2]
[421622552,1777981847000,-224.39540713,0.00012328,2]
[421622548,1777981847000,-1109.17,0.00012328,2]
[421622550,1777981847000,-596.92,0.00012328,2]
[421622556,1777981847000,-500.0,0.00012328,2]
[421622558,1777981847000,-500.0,0.00012328,2]
[421622559,1777981847000,-500.0,0.00012328,2]
[421622560,1777981847000,-500.91,0.00012328,2]
[421622561,1777981847000,-500.0,0.00012328,2]
[421622562,1777981847000,-1635.68,0.00012328,2]
[421622563,1777981847000,-500.0,0.00012328,2]
[421622564,1777981847000,-500.0,0.00012328,2]
[421622549,1777981847000,-500.0,0.00012328,2]
[421622565,1777981847000,-1752.40161675,0.00012328,2]
[421622566,1777982017000,187.345818,5.599e-05,2]
[421622567,1777982018000,187.345818,6.999e-05,2]
[421622568,1777982311000,5000.0,8.01e-05,2]
[421622569,1777982326000,152.0,9.997e-05,30]
[421622570,1777982327000,152.0,9.997e-05,30]
[421622572,1777982425000,4592.47882625,8.01e-05,2]
[421622574,1777982455000,152.0,0.00010002,30]
[421622573,1777982455000,-387.79388972,8.272e-05,2]
[421622575,1777982473000,-536.0,8.272e-05,2]
[421622576,1777982496000,-300.0,8.313e-05,2]
[421622577,1777982514000,-209.0,8.313e-05,2]
[421622578,1777982532000,-300.0,8.313e-05,2]
[421622579,1777982555000,-300.0,8.313e-05,2]
[421622580,1777982573000,-1200.0,8.313e-05,2]
[421622581,1777982613000,512.1091199,0.0001818,120]
[421622582,1777982614000,512.1091199,0.00018229,120]
[421622583,1777982615000,512.1091199,0.00018278,120]
[421622584,1777982626000,152.0,0.00010002,30]
[421622779,1777983040000,-380.03801192,8.439e-05,2]
[421622778,1777983040000,-187.345818,8.399e-05,2]
[421622780,1777983040000,-300.0,8.479e-05,2]
[421622782,1777983040000,-300.0,8.48e-05,2]
[421622781,1777983040000,-1200.0,8.479e-05,2]
[421622783,1777983040000,-300.0,8.48e-05,2]
[421622788,1777983040000,-300.0,8.48e-05,2]
[421622786,1777983040000,-300.0,8.48e-05,2]
[421622785,1777983040000,-300.0,8.48e-05,2]
[421622784,1777983040000,-300.0,8.48e-05,2]
[421622787,1777983040000,-300.0,8.48e-05,2]
[421622789,1777983040000,-14.73729577,8.48e-05,2]
[421622823,1777983041000,-442.0,0.00011862,2]
[421622822,1777983041000,-185.0,0.00011862,2]
[421622819,1777983041000,-187.345818,0.00011199,2]
[421622818,1777983041000,-1503.66545966,0.00011185,2]
[421622824,1777983041000,-183.6296622,0.000119,2]
[421622816,1777983041000,-152.0,0.00010573,7]
[421622825,1777983041000,-266.89660707,0.000119,2]
[421622821,1777983041000,-455.7330147,0.00011518,2]
[421622815,1777983041000,-152.0,0.00010573,7]
[421622820,1777983041000,-1000.0,0.00011511,2]
[421622827,1777983041000,-183.784,0.00012,2]
[421622837,1777983041000,-500.0,0.00012025,2]
[421622817,1777983041000,-15000.0,0.00010959,2]
[421622811,1777983041000,-720.0,9.513e-05,2]
[421622799,1777983041000,-285.26270423,8.48e-05,2]
[421622808,1777983041000,-600.0,8.649e-05,2]
[421622804,1777983041000,-300.0,8.48e-05,2]
[421622809,1777983041000,-715.0,9.327e-05,2]
[421622810,1777983041000,-300.0,9.331e-05,2]
[421622806,1777983041000,-300.0,8.48e-05,2]
[421622812,1777983041000,-187.345818,9.799e-05,2]
[421622805,1777983041000,-300.0,8.48e-05,2]
[421622802,1777983041000,-300.0,8.48e-05,2]
[421622814,1777983041000,-864.0,0.00010465,2]
[421622813,1777983041000,-448.44485407,0.00010439,2]
[421622803,1777983041000,-300.0,8.48e-05,2]
[421622801,1777983041000,-300.0,8.48e-05,2]
[421622800,1777983041000,-300.0,8.48e-05,2]
[421622838,1777983041000,-500.0,0.00012025,2]
[421622807,1777983041000,-1777.85504803,8.48e-05,2]
[421622839,1777983041000,-500.0,0.00012025,2]
[421622845,1777983041000,-500.0,0.00012025,2]
[421622833,1777983041000,-500.0,0.00012025,2]
[421622834,1777983041000,-500.0,0.00012025,2]
[421622861,1777983041000,-500.0,0.00012025,2]
[421622856,1777983041000,-500.0,0.00012025,2]
[421622853,1777983041000,-500.0,0.00012025,2]
[421622857,1777983041000,-500.0,0.00012025,2]
[421622860,1777983041000,-500.0,0.00012025,2]
[421622858,1777983041000,-500.0,0.00012025,2]
[421622859,1777983041000,-297.58454579,0.00012025,2]
[421622854,1777983041000,-500.0,0.00012025,2]
[421622852,1777983041000,-500.0,0.00012025,2]
[421622849,1777983041000,-500.0,0.00012025,2]
[421622862,1777983041000,-475.29931227,0.00012025,2]
[421622848,1777983041000,-500.0,0.00012025,2]
[421622851,1777983041000,-513.05949585,0.00012025,2]
[421622847,1777983041000,-217.69511687,0.00012025,2]
[421622855,1777983041000,-500.0,0.00012025,2]